{"text_format":"3","workbook":"xlsx","n_sheets":1,"sheets":["交货地点及有关要求"],"not_rendered":{"external_links":1,"defined_names":2},"read":"whole","date_system":"1900"}

{"sheet":"交货地点及有关要求","index":0,"n_rows":55,"n_cols":16,"rows_kept":55,"merged":[[0,1,0,15],[1,0,2,0],[1,1,2,1],[1,2,2,2],[1,3,2,3],[1,4,2,4],[1,5,1,14],[44,2,44,15],[45,2,45,15],[46,2,46,15],[47,2,47,15],[48,2,48,15],[49,2,49,15],[50,2,50,15],[51,2,51,15],[52,2,52,15],[53,2,53,15],[54,2,54,15]]}
[null,"东莞市碧水信息科技有限公司2025年第四季度办公电子设备及耗材采购项目交货地点及有关要求"]
["序号","名称","规格型号","推荐品牌","单位","数量"]
[{"$nulls":5},"党群人事组","行政办公组","财务组","工程技术组","合同管理组","安全监管组","第一项目部","第二项目部","第三项目部","榴花坑食堂","合计"]
[null," SSD固态硬盘","SATA3.0接口，512GB，顺序读速大于540MB/s，顺序写入大于500MB/s","希捷、西部数据、金士顿","个",null,5,{"$nulls":8},{"$f":"SUM(F4:O4)","v":5}]
[null,"机械硬盘","SATA接口，3.5寸，2TB ","西部数据、金士顿、东芝","个",null,1,{"$nulls":8},1]
[null,"台式电脑内存条","16GB DDR4 3200内存","威刚、朗科、芝奇","条",null,10,3,{"$nulls":7},13]
[null,"hdmi线","2米","任意品牌","条",{"$nulls":7},1,null,null,1]
[null,"SD储存卡","128GB（高速）","闪迪、金士顿、三星","张",null,5,{"$nulls":8},5]
[null,"U盘 ","128GB，USB3.2","金士顿、闪迪、东芝","个",null,20,{"$nulls":4},5,8,2,null,35]
[null,"充电宝","10000mAh手机充电宝 3ce认证","酷态科、小米、华为","个",null,10,{"$nulls":4},2,{"$nulls":3},12]
[null,"电脑包","通用手提电脑包（16英寸以上）","戴尔、联想、华为","个",null,10,{"$nulls":4},10,null,3,null,23]
[null,"高速读卡器","usb3.0二合一多功能，适用手机单反相机","绿联、品胜、绿巨能","个",null,3,{"$nulls":5},1,null,null,4]
[null,"电脑显示屏","27英寸以上，2K,240hz,HDR400,升降旋转支架,分辨率2560*1440以上","小米、华硕、戴尔、AOC","台",null,10,{"$nulls":8},10]
[null,"光盘刻录机","外置刻录机，外置DVD光驱，DVD刻录机，DVD光驱，支持USB，Type-C接口，8倍速","联想、爱国者、华硕","部",{"$nulls":6},1,2,null,null,3]
[null,"激光笔","红色光，100米远控，可PPT翻页","任意品牌","支",null,20,{"$nulls":8},20]
[null,"键盘","全尺寸；无线键盘","惠普、联想、罗技","个",{"$nulls":8},3,null,3]
[null,"键盘","全尺寸；有线键盘","双飞燕、联想、宏基、罗技","个",{"$nulls":7},2,null,null,2]
[null,"刻录光盘","DVD+R 光盘/刻录盘 16速4.7GB 办公系列 桶装10片/盒 空白光盘","联想、飞利浦、得力","盒",{"$nulls":6},5,{"$nulls":3},5]
[null,"路由器","无线双频：2.4GHz 和 5GHz，四线3000M","华为、水星、TP-link，小米","台",{"$nulls":7},1,null,null,1]
[null,"鼠标垫","佳积布面鼠标垫/25*20cm","得力、晨光、齐心","块",null,10,{"$nulls":4},10,20,10,null,50]
[null,"无线键盘鼠标套装","静音，无线，外接USB，2.4G","罗技、联想、双飞燕、惠普","套",null,10,{"$nulls":6},2,null,12]
[null,"无线鼠标","静音，无线，外接USB，无线2.4G","罗技、小米、雷柏","个",null,10,{"$nulls":4},10,2,3,null,25]
[null,"无线网卡","速率：600M+286M；Wi-Fi6免驱网卡，内置天线；频率范围\n：2.4GHz/5GHz","普联、腾达、绿联","个",null,8,{"$nulls":8},8]
[null,"硒鼓、墨盒、碳粉","四色(黑+红+黄+蓝)，适用于IMC2000，大容量","理光、绘威、彩格","套",{"$nulls":7},3,null,null,3]
[null,"硒鼓、墨盒、碳粉","适用于HP M281fdw（四色），标准容量","惠普、绘威、彩格","套",{"$nulls":6},3,{"$nulls":3},3]
[null,"硒鼓、墨盒、碳粉","适用打印机型号：HP LaserJet 1020 plus，黑色，标准容量","惠普、彩格、绘威","套",{"$nulls":6},3,{"$nulls":3},3]
[null,"移动硬盘","2TB、USB3.0","西部数据、希捷、东芝","个",2,5,null,null,3,null,1,1,5,null,17]
[null,"有线鼠标","电脑通用","联想、华硕、戴尔、罗技","个",{"$nulls":6},10,2,null,null,12]
[null,"键盘","104键、红轴或茶轴或青轴、蓝牙+2.4G+有线","狼途、雷神、迈从、RK","个",null,1,{"$nulls":8},1]
[null,"笔记本电脑移动电源","20000毫安、130W、3CE认证","任意品牌","个",null,2,{"$nulls":4},3,{"$nulls":3},5]
[null,"插座面板","新国标，3*2带开关","任意品牌","个",{"$nulls":7},2,null,null,2]
[null,"鼠标垫","800*400mm，布面橡胶加厚防滑耐磨，黑色","任意品牌","张",{"$nulls":7},1,null,null,1]
[null,"碎纸机","全自动80张碎纸机商务办公中型家商两用粉碎机","惠普，得力，科密","台",1,{"$nulls":9},1]
[null,"底座式显示器支架","17-32英寸底座式显示器支架电脑支架","任意品牌","个",1,{"$nulls":9},1]
[null,"硒鼓、墨盒、碳粉","适用于惠普HP 136w硒鼓110a墨盒四色套装（黑红黄蓝）","惠普、彩格、绘威","套",{"$nulls":7},1,null,null,1]
[null,"硒鼓、墨盒、碳粉","适用于惠普HP 955原装墨盒8210/8710/8720/7720/7730/7740打印机四色套装（黑红黄蓝）","惠普、彩格、绘威","套",{"$nulls":7},6,null,null,6]
[null,"台式电脑外置摄像头","USB，1080P高清","绿联、海康威视、EMEET、奥尼、罗技","个",{"$nulls":7},5,null,null,5]
[null,"投标U盘","2G","任意品牌、不同款式","个",{"$nulls":3},5,{"$nulls":6},5]
[null,"多彩U盘","灰色【稳定兼容】，2G","任意品牌、不同款式","个",{"$nulls":3},5,{"$nulls":6},5]
[null,"网线","6类，3米；纯铜线芯 千兆高速，八芯双绞","绿联、安普康、飞利浦","条",null,5,{"$nulls":8},5]
[null,"type c数据线","支持快充，长度1m","任意品牌","线",{"$nulls":7},6,null,null,6]
[null,"车载充电器","点烟器超级快充转换器，插头一拖二","任意品牌","个",{"$nulls":7},6,null,null,6]
[]
[]
[null,null,"送货地点："]
[null,null,"党群人事组：曹力 13509831132  广东省东莞市南城街道滨河路100号（1号楼二楼党群人事部、有电梯）"]
[null,null,"行政办公组：汤依笑 18126056949  广东省东莞市南城街道滨河路100号（1号楼二楼办公室、有电梯）"]
[null,null,"财务组：魏泽君 13544727781 广东省东莞市南城街道滨河路100号（1号楼二楼财务部、有电梯）"]
[null,null,"工程技术组：陈靖怡 13431348282 广东省东莞市南城街道滨河路100号（1号楼二楼工程技术部、有电梯）"]
[null,null,"合同管理组：方晓颖 13169848517 广东省东莞市南城街道滨河路100号（1号楼二楼合同管理部、有电梯）"]
[null,null,"安全监管组：伦紫刚 13929266718 广东省东莞市南城街道滨河路100号（1号楼二楼安全监管部、有电梯）"]
[null,null,"第一项目部：周琰添 13556625118广东省东莞市南城街道滨河路100号（1号楼一楼）"]
[null,null,"第二项目部：蔡伟建 13925599913广东省东城街道上桥工业区龙石路15号（无电梯）"]
[null,null,"第三项目部：李玄宇 18802568856广东省东城街道上桥工业区龙石路15号（无电梯）"]
[null,null,"榴花坑食堂：蔡伟建 13925599913广东省东城街道上桥工业区龙石路15号（无电梯）"]